fUSD/lending_fUSD_20251105
["ID","MTS","AMOUNT","RATE_DAILY","PERIOD"]
[393195978,1762311039950,-500.0,0.00020273,2]
[393195979,1762311039960,-500.0,0.00020273,2]
[393195980,1762311039969,-500.0,0.00020273,2]
[393195981,1762311039979,-510.55136191,0.00020273,2]
[393195982,1762311039991,-500.0,0.00020273,2]
[393195983,1762311040000,-500.0,0.00020273,2]
[393195984,1762311040010,-500.0,0.00020273,2]
[393195985,1762311040019,-500.0,0.00020273,2]
[393195986,1762311040029,-500.0,0.00020273,2]
[393195987,1762311040039,-1002.7350988,0.00020521,2]
[393195988,1762311040048,-281.38814156,0.00020531,2]
[393195989,1762311040057,-250.0,0.00020821,2]
[393195990,1762311040071,-1000.0,0.00020821,2]
[393195991,1762311040081,-568.88126658,0.00020821,2]
[393195992,1762311040090,-1000.0,0.00020821,2]
[393195993,1762311040099,-1000.0,0.00020821,2]
[393195994,1762311040109,-1000.0,0.00020821,2]
[393195995,1762311040118,-1000.0,0.00020821,2]
[393195996,1762311040128,-1000.0,0.00020821,2]
[393195997,1762311040137,-1000.0,0.00020821,2]
[393195998,1762311040146,-1000.0,0.00020821,2]
[393195999,1762311040157,-1000.0,0.00020821,2]
[393196000,1762311040166,-1000.0,0.00020821,2]
[393196001,1762311040176,-400.0,0.00020958,2]
[393196002,1762311040185,-500.0,0.00020958,2]
[393196003,1762311040195,-250.78168277,0.00021368,2]
[393196004,1762311040204,-1500.0,0.00021368,2]
[393196005,1762311040213,-1500.0,0.00021368,2]
[393196006,1762311040222,-1500.0,0.00021368,2]
[393196007,1762311040231,-1500.0,0.00021368,2]
[393196008,1762311040240,-866.15389441,0.00021368,2]
[393196009,1762311040249,-1500.0,0.00021368,2]
[393196010,1762311040258,-1500.0,0.00021368,2]
[393196011,1762311040268,-1152.0,0.00021518,2]
[393196012,1762311040277,-1152.0,0.00021518,2]
[393196013,1762311040287,-1759.0,0.00021539,2]
[393196015,1762311040296,-150.0,0.000216,2]
[393196016,1762311040305,-162.06676561,0.000216,2]
[393196017,1762311040316,-13401.97147637,0.00021609,2]
[393196018,1762311040326,-600.0,0.00021642,2]
[393196019,1762311040336,-485.60103348,0.00021907,2]
[393196020,1762311040345,-1021.05467729,0.00021916,2]
[393196021,1762311040354,-732.45982984,0.00021916,2]
[393196022,1762311040363,-776.15714942,0.00021916,2]
[393196023,1762311040372,-977.06605906,0.00021916,2]
[393196024,1762311040382,-2000.0,0.00021916,2]
[393196025,1762311040392,-2000.0,0.00021916,2]
[393196026,1762311040401,-500.0,0.00021917,2]
[393196027,1762311040411,-500.0,0.00021917,2]
[393196028,1762311040421,-500.0,0.00021917,2]
[393196029,1762311040430,-500.0,0.00021917,2]
[393196030,1762311040439,-500.0,0.00021917,2]
[393196031,1762311040448,-500.0,0.00021917,2]
[393196032,1762311040460,-4609.0,0.00021959,2]
[393196033,1762311040471,-500.0,0.00022068,2]
[393196034,1762311040481,-250.0,0.00022148,2]
[393196035,1762311040491,-500.0,0.00022199,2]
[393196036,1762311040503,-155.44,0.00022199,2]
[393196037,1762311040512,-150.0,0.00022242,2]
[393196038,1762311040521,-1040.71,0.00022242,2]
[393196039,1762311040531,-898.16663957,0.00022327,2]
[393196040,1762311040540,-2500.0,0.00022464,2]
[393196041,1762311040550,-2500.0,0.00022464,2]
[393196042,1762311040558,-9313.95118685,0.0002265,2]
[393196043,1762311040568,-253.96720107,0.00022696,2]
[393196044,1762311040577,-222.67209339,0.000228,2]
[393196045,1762311040587,-171.51478938,0.000228,2]
[393196046,1762311040596,-420.09082682,0.00022925,2]
[393196047,1762311040605,-182.75,0.00022956,2]
[393196048,1762311040614,-185.05,0.00022975,2]
[393196049,1762311040623,-3000.0,0.00023012,2]
[393196050,1762311040632,-2989.4221674,0.00023012,2]
[393196051,1762311040642,-193.14,0.00023449,2]
[393196052,1762311040651,-1613.0,0.00023551,2]
[393196053,1762311040660,-246.0,0.00023551,2]
[393196054,1762311040670,-3500.0,0.0002356,2]
[393196055,1762311040680,-485.60103348,0.00023942,2]
[393196056,1762311040689,-13401.97147637,0.00023976,2]
[393196057,1762311040698,-4000.0,0.00024108,2]
[393196058,1762311040707,-207.54456428,0.00024136,4]
[393196059,1762311040716,-6453.0,0.00024154,2]
[393196060,1762311040725,-686.87253938,0.00024656,2]
[393196061,1762311040734,-475.65,0.00024658,2]
[393196062,1762311040743,-500.0146487,0.00024764,2]
[393196063,1762311040753,-500.20791126,0.00024773,2]
[393196064,1762311040762,-151.0,0.00024797,7]
[393196065,1762311040771,-500.0,0.00024799,2]
[393196066,1762311040780,-500.0,0.00024799,2]
[393196067,1762311040789,-500.0,0.00024799,2]
[393196068,1762311040799,-500.0,0.00024799,2]
[393196069,1762311040808,-385996.751408,0.000248,3]
[393196070,1762311040818,-182.75,0.00024872,2]
[393196071,1762311040827,-500.0,0.00024899,2]
[393196072,1762311040836,-500.0,0.00024899,2]
[393196073,1762311040845,-158.25209266,0.00024899,2]
[393196074,1762311040854,-500.0,0.00024899,2]
[393196075,1762311040863,-500.0,0.00024899,2]
[393196076,1762311040872,-20465.19,0.000249,7]
[393196077,1762311040881,-82725.9082506,0.000249,3]
[393196078,1762311040890,-500.0,0.00024932,2]
[393196079,1762311040899,-500.0,0.00024932,2]
[393196080,1762311040909,-500.0,0.00024932,2]
[393196082,1762311040918,-500.0,0.00024932,2]
[393196083,1762311040926,-477.76462643,0.00025146,2]
[393196085,1762311040935,-150.4,0.00025223,2]
[393196086,1762311040944,-9313.95118685,0.00025233,2]
[393196087,1762311040953,-2258.0,0.00025775,2]
[393196088,1762311040963,-485.60103348,0.00025976,2]
[393196089,1762311040972,-420.09082682,0.00025977,2]
[393196090,1762311040984,-13401.97147637,0.00026344,2]
[393196091,1762311040993,-506.70220008,0.00026416,2]
[393196092,1762311041003,-3548.0,0.0002657,2]
[393196093,1762311041012,-182.75,0.00026788,7]
[393196094,1762311041023,-1099.96,0.00027,2]
[393196095,1762311041032,-475.65,0.00027397,2]
[393196096,1762311041041,-151.08,0.000274,7]
[393196097,1762311041052,-2232.99,0.000274,2]
[393196098,1762311041063,-1099.96,0.000275,2]
[393196099,1762311041073,-689.1,0.00027671,30]
[393196100,1762311041082,-9313.95118685,0.00027816,2]
[393196101,1762311041091,-150.4,0.0002789,2]
[393196102,1762311041100,-20465.19,0.000279,7]
[393196103,1762311041110,-1099.96,0.00028,30]
[393196104,1762311041120,-485.60103348,0.00028011,2]
[393196105,1762311041130,-1576.58189279,0.00028048,2]
[393196106,1762311041139,-150.42731866,0.00028058,2]
[393196107,1762311041148,-152.10989267,0.00028058,2]
[393196108,1762311041157,-150.0,0.00028058,2]
[393196109,1762311041166,-500.0,0.00028058,2]
[393196110,1762311041176,-152.84105378,0.00028058,2]
[393196111,1762311041185,-433.0,0.00028058,2]
[393196112,1762311041195,-556.0,0.00028058,2]
[393196113,1762311041205,-500.0,0.00028058,2]
[393196114,1762311041214,-154.17848018,0.00028058,2]
[393196115,1762311041224,-162.35889361,0.00028058,2]
[393196116,1762311041233,-500.0,0.00028058,2]
[393196117,1762311041243,-150.0,0.00028058,2]
[393196118,1762311041252,-150.0,0.00028058,2]
[393196119,1762311041262,-500.0,0.00028058,2]
[393196120,1762311041271,-150.0,0.00028058,2]
[393196121,1762311041279,-150.0,0.00028058,2]
[393196122,1762311041289,-150.0,0.00028058,2]
[393196123,1762311041298,-500.0,0.00028058,2]
[393196124,1762311041307,-500.0,0.00028058,2]
[393196125,1762311041315,-150.0,0.00028058,2]
[393196126,1762311041324,-150.8104487,0.00028058,2]
[393196127,1762311041333,-150.0,0.00028058,2]
[393196128,1762311041342,-152.72526817,0.00028058,2]
[393196129,1762311041351,-150.53676099,0.00028058,2]
[393196130,1762311041359,-500.0,0.00028058,2]
[393196131,1762311041368,-150.0,0.00028058,2]
[393196132,1762311041377,-150.59572911,0.00028058,2]
[393196133,1762311041386,-150.0,0.00028058,2]
[393196134,1762311041395,-150.50069053,0.00028058,2]
[393196135,1762311041404,-500.0,0.00028058,2]
[393196136,1762311041413,-500.0,0.00028058,2]
[393196137,1762311041422,-500.0,0.00028058,2]
[393196138,1762311041431,-213.18490842,0.00028058,2]
[393196139,1762311041439,-500.0,0.00028058,2]
[393196140,1762311041449,-500.0,0.00028058,2]
[393196141,1762311041458,-150.8351521,0.00028058,2]
[393196142,1762311041468,-150.0,0.00028058,2]
[393196143,1762311041477,-150.0,0.00028058,2]
[393196144,1762311041486,-150.0,0.00028195,2]
[393196145,1762311041495,-500.0,0.00028195,2]
[393196146,1762311041503,-433.0,0.00028195,2]
[393196147,1762311041513,-556.0,0.00028195,2]
[393196148,1762311041523,-500.0,0.00028195,2]
[393196149,1762311041534,-500.0,0.00028195,2]
[393196150,1762311041543,-213.05879372,0.00028195,2]
[393196151,1762311041552,-608.65523748,0.00028195,2]
[393196152,1762311041563,-150.0,0.00028195,2]
[393196153,1762311041574,-500.0,0.00028195,2]
[393196154,1762311041583,-500.0,0.00028195,2]
[393196155,1762311041592,-150.82628027,0.00028195,2]
[393196156,1762311041601,-154.29458154,0.00028195,2]
[393196157,1762311041611,-511.82257501,0.00028195,2]
[393196158,1762311041620,-152.83385556,0.00028195,2]
[393196159,1762311041630,-150.0,0.00028195,2]
[393196160,1762311041639,-500.0,0.00028195,2]
[393196161,1762311041648,-500.0,0.00028195,2]
[393196162,1762311041659,-150.0,0.00028195,2]
[393196163,1762311041668,-150.0,0.00028195,2]
[393196164,1762311041677,-3162.0,0.0002821,2]
[393196165,1762311041686,-150.0,0.00028332,2]
[393196166,1762311041694,-500.0,0.00028332,2]
[393196167,1762311041703,-433.0,0.00028332,2]
[393196168,1762311041712,-556.0,0.00028332,2]
[393196169,1762311041721,-564.94863932,0.00028332,2]
[393196170,1762311041731,-252.64109713,0.00028332,2]
[393196171,1762311041740,-294.52143738,0.00028332,2]
[393196172,1762311041749,-500.0,0.00028332,2]
[393196173,1762311041759,-500.0,0.00028332,2]
[393196174,1762311041769,-159.94877796,0.00028332,2]
[393196175,1762311041778,-500.0,0.00028332,2]
[393196176,1762311041787,-500.0,0.00028332,2]
[393196177,1762311041796,-150.0,0.00028332,2]
[393196178,1762311041806,-150.0,0.00028332,2]
[393196179,1762311041815,-203.09765029,0.00028469,2]
[393196180,1762311041824,-500.0,0.00028469,2]
[393196181,1762311041834,-433.0,0.00028469,2]
[393196182,1762311041843,-556.0,0.00028469,2]
[393196183,1762311041851,-500.0,0.00028469,2]
[393196184,1762311041860,-261.70059104,0.00028469,2]
[393196185,1762311041869,-500.0,0.00028469,2]
[393196186,1762311041878,-500.0,0.00028469,2]
[393196187,1762311041887,-158.74802862,0.00028469,2]
[393196188,1762311041896,-215.68751895,0.00028469,2]
[393196189,1762311041905,-290.67,0.00028588,2]
[393196190,1762311041914,-150.4,0.00028596,2]
[393196191,1762311041923,-500.0,0.00028603,2]
[393196192,1762311041932,-487.30061184,0.00028606,2]
[393196193,1762311041941,-433.0,0.00028606,2]
[393196194,1762311041950,-556.0,0.00028606,2]
[393196195,1762311041960,-170.04703191,0.00028606,2]
[393196196,1762311041969,-500.0,0.00028606,2]
[393196197,1762311041978,-500.0,0.00028606,2]
[393196198,1762311041993,-182.75,0.00028704,30]
[393196199,1762311042002,-13401.97147637,0.00028712,2]
[393196200,1762311042012,-433.0,0.00028743,2]
[393196201,1762311042020,-556.0,0.00028743,2]
[393196202,1762311042031,-500.0,0.00028743,2]
[393196203,1762311042040,-487.04730745,0.00028743,2]
[393196204,1762311042049,-433.0,0.0002888,2]
[393196205,1762311042058,-556.0,0.0002888,2]
[393196206,1762311042071,-381.56336037,0.0002888,2]
[393196207,1762311042080,-2232.99,0.000289,2]
[393196208,1762311042090,-14284.94,0.00029009,2]
[393196209,1762311042100,-9038.86,0.00029009,2]
[393196210,1762311042109,-433.0,0.00029017,2]
[393196211,1762311042118,-556.0,0.00029017,2]
[393196212,1762311042129,-420.09082682,0.00029028,2]
[393196213,1762311042138,-433.0,0.00029154,2]
[393196214,1762311042147,-556.0,0.00029154,2]
[393196215,1762311042156,-433.0,0.00029291,2]
[393196216,1762311042165,-556.0,0.00029291,2]
[393196217,1762311042174,-433.0,0.00029428,2]
[393196218,1762311042183,-556.0,0.00029428,2]
[393196219,1762311042192,-150.4,0.0002949,2]
[393196220,1762311042201,-20465.19,0.000295,7]
[393196221,1762311042210,-433.0,0.00029565,2]
[393196222,1762311042218,-556.0,0.00029565,2]
[393196223,1762311042227,-162.32794439,0.00029659,2]
[393196224,1762311042236,-433.0,0.00029702,2]
[393196225,1762311042245,-556.0,0.00029702,2]
[393196226,1762311042254,-433.0,0.00029839,2]
[393196227,1762311042263,-556.0,0.00029839,2]
[393196228,1762311042272,-433.0,0.00029976,2]
[393196229,1762311042281,-556.0,0.00029976,2]
[393196230,1762311042290,-300.0,0.00029987,7]
[393196231,1762311042300,-485.60103348,0.00030045,15]
[393196232,1762311042310,-433.0,0.00030113,2]
[393196233,1762311042319,-556.0,0.00030113,2]
[393196234,1762311042328,-1002.54939721,0.00030136,14]
[393196235,1762311042338,-999.0,0.00030136,2]
[393196236,1762311042347,-1000.0,0.00030136,14]
[393196237,1762311042356,-1000.0,0.00030136,14]
[393196238,1762311042365,-1001.80990282,0.00030136,14]
[393196239,1762311042374,-475.65,0.00030137,2]
[393196240,1762311042383,-433.0,0.0003025,2]
[393196241,1762311042392,-556.0,0.0003025,2]
[393196242,1762311042401,-433.0,0.00030387,2]
[393196243,1762311042410,-556.0,0.00030387,2]
[393196244,1762311042419,-9313.95118685,0.00030399,2]
[393196245,1762311042429,-2232.99,0.000305,2]
[393196246,1762311042439,-375.0,0.00030515,7]
[393196247,1762311042449,-433.0,0.00030524,2]
[393196248,1762311042458,-556.0,0.00030524,2]
[393196249,1762311042467,-182.75,0.0003062,30]
[393196250,1762311042476,-375.0,0.00030652,7]
[393196251,1762311042485,-433.0,0.00030661,2]
[393196252,1762311042494,-556.0,0.00030661,2]
[393196253,1762311042658,-433.0,0.00030798,2]
[393196254,1762311042668,-556.0,0.00030798,2]
[393196255,1762311042677,-500.0,0.00030822,2]
[393196256,1762311042687,-597.0,0.00030874,2]
[393196257,1762311042696,-433.0,0.00030935,2]
[393196258,1762311042705,-556.0,0.00030935,2]
[393196259,1762311042714,-150.4,0.0003099,2]
[393196260,1762311042723,-20465.19,0.00031,7]
[393196261,1762311042732,-433.0,0.00031072,2]
[393196262,1762311042741,-556.0,0.00031072,2]
[393196263,1762311042751,-13401.97147637,0.0003108,2]
[393196264,1762311042760,-29107.0,0.000312,2]
[393196265,1762311042770,-444.96050936,0.00031209,2]
[393196266,1762311042779,-577.57313684,0.00031209,2]
[393196267,1762311042788,-500.0,0.00031417,5]
[393196268,1762311042797,-500.0146487,0.00031474,2]
[393196269,1762311042807,-152.0,0.00031746,3]
[393196270,1762311042817,-5515.0,0.000319,3]
[393196271,1762311042826,-1007.38751411,0.00031965,5]
[393196272,1762311042835,-290.67,0.00031994,2]
[393196273,1762311042845,-259.85633,0.00032054,6]
[393196274,1762311042855,-241.687443,0.00032054,6]
[393196275,1762311042864,-250.039465,0.00032054,6]
[393196276,1762311042873,-706.619816,0.00032054,6]
[393196277,1762311042883,-706.619817,0.00032054,6]
[393196278,1762311042891,-241.394707,0.00032054,6]
[393196279,1762311042901,-237.094054,0.00032054,6]
[393196280,1762311042910,-259.856329,0.00032054,6]
[393196281,1762311042919,-250.039465,0.00032054,6]
[393196282,1762311042928,-485.60103348,0.0003208,15]
[393196283,1762311042937,-420.09082682,0.0003208,2]
[393196284,1762311042946,-940.02202175,0.00032103,30]
[393196285,1762311042955,-150.4,0.00032189,2]
[393196286,1762311042965,-500.0,0.00032199,2]
[393196287,1762311042975,-2232.99,0.000322,2]
[393196288,1762311042988,-259.85633,0.00032301,6]
[393196289,1762311042999,-241.687443,0.00032301,6]
[393196290,1762311043010,-250.039465,0.00032301,6]
[393196291,1762311043019,-706.619816,0.00032301,6]
[393196292,1762311043029,-156.083285,0.00032301,6]
[393196293,1762311043039,-706.619817,0.00032301,6]
[393196294,1762311043048,-241.394707,0.00032301,6]
[393196295,1762311043058,-237.094054,0.00032301,6]
[393196296,1762311043069,-259.856329,0.00032301,6]
[393196297,1762311043078,-250.039465,0.00032301,6]
[393196298,1762311043087,-495.67567222,0.00032301,10]
[393196299,1762311043097,-152.0,0.00032492,4]
[393196300,1762311043106,-182.75,0.00032535,30]
[393196302,1762311043116,-500.0,0.00032573,5]
[393196304,1762311043125,-5515.0,0.000326,5]
[393196306,1762311043135,-150.0,0.00032642,5]
[393196308,1762311043144,-500.0,0.00032642,5]
[393196309,1762311043153,-218.36398805,0.00032876,2]
[393196310,1762311043163,-500.0,0.00032876,2]
[393196311,1762311043172,-500.0,0.00032876,2]
[393196312,1762311043181,-500.0,0.00032876,2]
[393196313,1762311043190,-501.21418892,0.00032876,2]
[393196314,1762311043199,-500.0,0.00032876,2]
[393196315,1762311043210,-500.0,0.00032876,2]
[393196316,1762311043219,-500.0,0.00032876,2]
[393196317,1762311043228,-500.0,0.00032876,2]
[393196318,1762311043238,-500.0,0.00032876,2]
[393196319,1762311043247,-500.0,0.00032876,2]
[393196320,1762311043256,-500.0,0.00032876,2]
[393196321,1762311043265,-500.0,0.00032876,2]
[393196322,1762311043274,-500.0,0.00032876,2]
[393196323,1762311043283,-500.0,0.00032876,2]
[393196324,1762311043293,-338.6833518,0.00032876,2]
[393196325,1762311043302,-500.0,0.00032876,2]
[393196326,1762311043311,-500.0,0.00032876,2]
[393196327,1762311043321,-500.0,0.00032876,2]
[393196328,1762311043330,-500.0,0.00032876,2]
[393196329,1762311043339,-500.0,0.00032876,2]
[393196330,1762311043348,-402.19211532,0.00032876,2]
[393196331,1762311043358,-502.05799969,0.00032876,120]
[393196332,1762311043367,-500.0,0.00032876,120]
[393196333,1762311043376,-507.33791597,0.00032876,120]
[393196334,1762311043385,-3896.74,0.00032876,2]
[393196335,1762311043395,-3896.74,0.00032876,2]
[393196336,1762311043404,-3896.74,0.00032876,2]
[393196337,1762311043414,-3896.74,0.00032876,2]
[393196338,1762311043423,-3896.74,0.00032876,2]
[393196339,1762311043432,-3896.74,0.00032876,2]
[393196340,1762311043441,-3896.74,0.00032876,2]
[393196341,1762311043450,-3896.74,0.00032876,2]
[393196342,1762311043459,-3896.74,0.00032876,2]
[393196343,1762311043468,-3896.74,0.00032876,2]
[393196344,1762311043478,-3896.74,0.00032876,2]
[393196345,1762311043488,-3896.74,0.00032876,2]
[393196346,1762311043497,-3896.74,0.00032876,2]
[393196347,1762311043506,-3896.74,0.00032876,2]
[393196348,1762311043516,-3896.74,0.00032876,2]
[393196349,1762311043526,-3896.74,0.00032876,2]
[393196350,1762311043536,-3896.74,0.00032876,2]
[393196351,1762311043546,-3896.74,0.00032876,2]
[393196352,1762311043556,-3896.74,0.00032876,2]
[393196353,1762311043566,-3896.74,0.00032876,2]
[393196354,1762311043576,-3896.74,0.00032876,2]
[393196355,1762311043587,-3896.74,0.00032876,2]
[393196356,1762311043597,-3896.74,0.00032876,2]
[393196357,1762311043607,-3896.86,0.00032876,2]
[393196358,1762311043616,-1000.0,0.00032876,2]
[393196359,1762311043626,-1000.0,0.00032876,2]
[393196360,1762311043636,-1000.0,0.00032876,2]
[393196361,1762311043646,-1000.0,0.00032876,2]
[393196362,1762311043656,-1000.0,0.00032876,2]
[393196363,1762311043666,-250.79016794,0.00032876,2]
[393196364,1762311043675,-300.0,0.00032876,2]
[393196365,1762311043684,-300.0,0.00032876,2]
[393196366,1762311043694,-300.0,0.00032876,2]
[393196367,1762311043704,-300.0,0.00032876,2]
[393196368,1762311043713,-300.0,0.00032876,2]
[393196369,1762311043722,-300.0,0.00032876,2]
[393196370,1762311043732,-300.0,0.00032876,2]
[393196371,1762311043742,-300.0,0.00032876,2]
[393196372,1762311043750,-300.0,0.00032876,2]
[393196373,1762311043760,-259.81972257,0.00032876,2]
[393196374,1762311043769,-151.0,0.00032876,31]
[393196375,1762311043779,-999.0,0.00032876,120]
[393196376,1762311043789,-151.0,0.00032876,31]
[393196377,1762311043798,-151.0,0.00032876,31]
[393196378,1762311043809,-151.0,0.00032876,31]
[393196379,1762311043820,-151.0,0.00032876,31]
[393196380,1762311043829,-151.000002,0.00032876,31]
[393196381,1762311043839,-153.730207,0.00032876,31]
[393196382,1762311043849,-151.0,0.00032876,31]
[393196383,1762311043858,-151.0,0.00032876,31]
[393196384,1762311043868,-264.108875,0.00032876,31]
[393196385,1762311043877,-264.108875,0.00032876,31]
[393196386,1762311043887,-264.108875,0.00032876,31]
[393196387,1762311043896,-159.320944,0.00032876,31]
[393196388,1762311043906,-153.395076,0.00032876,31]
[393196389,1762311043915,-264.108875,0.00032876,31]
[393196390,1762311043925,-151.0,0.00032876,31]
[393196391,1762311043935,-151.0,0.00032876,31]
[393196393,1762311043944,-164.528843,0.00032876,31]
[393196394,1762311043954,-173.764615,0.00032876,31]
[393196395,1762311043963,-151.0,0.00032876,31]
[393196396,1762311043973,-173.764615,0.00032876,31]
[393196397,1762311043985,-173.764615,0.00032876,31]
[393196398,1762311043996,-173.764615,0.00032876,31]
[393196399,1762311044006,-151.0,0.00032876,31]
[393196400,1762311044016,-151.0,0.00032876,31]
[393196401,1762311044026,-158.55006,0.00032876,31]
[393196402,1762311044036,-151.0,0.00032876,31]
[393196403,1762311044046,-151.0,0.00032876,31]
[393196404,1762311044055,-151.0,0.00032876,31]
[393196405,1762311044072,-151.0,0.00032876,31]
[393196406,1762311044083,-151.0,0.00032876,31]
[393196407,1762311044093,-151.0,0.00032876,31]
[393196408,1762311044103,-151.0,0.00032876,31]
[393196409,1762311044112,-151.0,0.00032876,31]
[393196410,1762311044122,-151.0,0.00032876,31]
[393196411,1762311044132,-151.0,0.00032876,31]
[393196412,1762311044141,-151.0,0.00032876,31]
[393196413,1762311044151,-160.59943,0.00032876,31]
[393196414,1762311044160,-151.0,0.00032876,31]
[393196415,1762311044170,-173.576813,0.00032876,31]
[393196416,1762311044180,-151.0,0.00032876,30]
[393196417,1762311044189,-151.0,0.00032876,31]
[393196418,1762311044198,-151.0,0.00032876,31]
[393196419,1762311044208,-255.872056,0.00032876,31]
[393196420,1762311044217,-151.0,0.00032876,31]
[393196421,1762311044226,-151.0,0.00032876,31]
[393196422,1762311044235,-201.136495,0.00032876,31]
[393196423,1762311044244,-151.0,0.00032876,31]
[393196424,1762311044253,-151.0,0.00032876,31]
[393196425,1762311044263,-151.0,0.00032876,31]
[393196426,1762311044271,-151.0,0.00032876,31]
[393196427,1762311044281,-151.0,0.00032876,31]
[393196428,1762311044290,-155.375493,0.00032876,31]
[393196429,1762311044300,-163.972608,0.00032876,31]
[393196430,1762311044309,-294.714642,0.00032876,31]
[393196431,1762311044322,-151.0,0.00032876,31]
[393196432,1762311044331,-151.0,0.00032876,30]
[393196433,1762311044340,-475.65,0.00032877,2]
[393196434,1762311044350,-150.0,0.00032877,5]
[393196435,1762311044359,-1292.72,0.00032968,2]
[393196436,1762311044369,-9313.95118685,0.00032983,2]
[393196437,1762311044378,-5888.0,0.00033088,2]
[393196438,1762311044388,-151.08,0.000331,14]
[393196439,1762311044399,-1000.0,0.00033121,5]
[393196440,1762311044409,-3422.0,0.00033162,2]
[393196441,1762311044418,-610.077,0.00033162,2]
[393196442,1762311044428,-1315.0,0.00033162,2]
[393196443,1762311044437,-576.786,0.00033162,2]
[393196444,1762311044446,-1595.0,0.00033162,2]
[393196445,1762311044455,-820.0,0.00033162,2]
[393196446,1762311044465,-812.0,0.00033162,2]
[393196447,1762311044474,-1272.0,0.00033162,2]
[393196448,1762311044484,-6656.0,0.00033162,2]
[393196449,1762311044493,-6473.0,0.00033162,2]
[393196450,1762311044504,-561.824,0.00033162,2]
[393196451,1762311044513,-2141.0,0.00033162,2]
[393196452,1762311044522,-150.0,0.0003319,5]
[393196453,1762311044532,-1000.0,0.0003319,5]
[393196454,1762311044542,-747.55618023,0.0003323,2]
[393196455,1762311044552,-152.0,0.00033239,5]
[393196456,1762311044562,-162.32794439,0.00033367,2]
[393196457,1762311044573,-203.91108501,0.00033425,5]
[393196458,1762311044582,-13401.97147637,0.00033447,2]
[393196459,1762311044591,-512.38,0.00033584,2]
[393196460,1762311044601,-182.22118562,0.00033594,2]
[393196461,1762311044610,-1197.03833275,0.00033669,5]
[393196462,1762311044619,-219.3474338,0.000337,2]
[393196463,1762311044628,-150.0,0.00033738,5]
[393196464,1762311044637,-1500.0,0.00033738,5]
[393196465,1762311044646,-5888.0,0.00033816,7]
[393196466,1762311044656,-152.0,0.00033986,6]
[393196467,1762311044665,-219.3474338,0.00034127,2]
[393196468,1762311044674,-154.051706,0.00034185,31]
[393196469,1762311044683,-151.0,0.00034185,31]
[393196470,1762311044692,-151.0,0.00034185,31]
[393196471,1762311044702,-151.0,0.00034185,31]
[393196472,1762311044711,-151.0,0.00034185,31]
[393196473,1762311044720,-151.0,0.00034185,31]
[393196474,1762311044729,-155.848415,0.00034185,31]
[393196475,1762311044738,-153.163445,0.00034185,31]
[393196476,1762311044747,-151.0,0.00034185,31]
[393196477,1762311044756,-151.0,0.00034185,31]
[393196478,1762311044766,-151.0,0.00034185,31]
[393196479,1762311044775,-151.0,0.00034185,31]
[393196480,1762311044784,-151.0,0.00034185,31]
[393196481,1762311044794,-151.0,0.00034185,31]
[393196482,1762311044803,-151.0,0.00034185,31]
[393196483,1762311044813,-267.725091,0.00034185,31]
[393196484,1762311044822,-151.0,0.00034185,31]
[393196485,1762311044831,-232.958641,0.00034185,28]